fUSD/lending_fUSD_20250716
["ID","MTS","AMOUNT","RATE_DAILY","PERIOD"]
[372533503,1752675040898,-462.31976494,0.00021917,2]
[372533505,1752675040908,-460.0,0.00021917,2]
[372533507,1752675040918,-460.0,0.00021917,2]
[372533509,1752675040928,-626.55,0.00021917,2]
[372533511,1752675040938,-460.0,0.00021917,2]
[372533513,1752675040948,-460.0,0.00021917,2]
[372533515,1752675040958,-460.0,0.00021917,2]
[372533517,1752675040968,-460.0,0.00021917,2]
[372533519,1752675040980,-460.0,0.00021917,2]
[372533521,1752675040989,-460.0,0.00021917,2]
[372533524,1752675041001,-460.0,0.00021917,2]
[372533526,1752675041010,-460.0,0.00021917,2]
[372533527,1752675041020,-460.0,0.00021917,2]
[372533530,1752675041031,-460.0,0.00021917,2]
[372533532,1752675041041,-460.0,0.00021917,2]
[372533534,1752675041052,-520.08,0.00021917,2]
[372533536,1752675041061,-460.0,0.00021917,2]
[372533538,1752675041071,-380.96012037,0.00021917,2]
[372533540,1752675041081,-460.0,0.00021917,2]
[372533542,1752675041091,-460.0,0.00021917,2]
[372533544,1752675041103,-460.0,0.00021917,2]
[372533546,1752675041112,-460.0,0.00021917,2]
[372533548,1752675041122,-460.0,0.00021917,2]
[372533550,1752675041132,-596.49,0.00021917,2]
[372533552,1752675041144,-460.0,0.00021917,2]
[372533554,1752675041154,-597.48,0.00021917,2]
[372533556,1752675041164,-460.0,0.00021917,2]
[372533558,1752675041174,-460.0,0.00021917,2]
[372533560,1752675041184,-460.0,0.00021917,2]
[372533562,1752675041194,-373.79350706,0.00021917,2]
[372533565,1752675041204,-460.0,0.00021917,2]
[372533567,1752675041215,-460.0,0.00021917,2]
[372533569,1752675041228,-460.0,0.00021917,2]
[372533570,1752675041238,-460.0,0.00021917,2]
[372533573,1752675041248,-460.0,0.00021917,2]
[372533575,1752675041259,-460.0,0.00021917,2]
[372533576,1752675041268,-460.0,0.00021917,2]
[372533579,1752675041279,-460.0,0.00021917,2]
[372533581,1752675041288,-460.0,0.00021917,2]
[372533582,1752675041301,-460.75993397,0.00021917,7]
[372533585,1752675041311,-460.0,0.00021917,2]
[372533586,1752675041321,-460.0,0.00021917,2]
[372533588,1752675041330,-500.0,0.00021917,2]
[372533590,1752675041340,-500.0,0.00021917,2]
[372533593,1752675041350,-460.0,0.00021917,2]
[372533595,1752675041359,-500.0,0.00021917,2]
[372533597,1752675041370,-500.0,0.00021917,2]
[372533599,1752675041380,-500.0,0.00021917,2]
[372533601,1752675041391,-500.0,0.00021917,2]
[372533603,1752675041401,-460.0,0.00021917,2]
[372533605,1752675041411,-460.0,0.00021917,2]
[372533607,1752675041421,-460.0,0.00021917,2]
[372533609,1752675041431,-753.05,0.00021917,2]
[372533611,1752675041441,-460.0,0.00021917,2]
[372533613,1752675041451,-437.61655254,0.00021917,2]
[372533615,1752675041460,-460.0,0.00021917,2]
[372533617,1752675041470,-460.0,0.00021917,2]
[372533619,1752675041480,-460.0,0.00021917,2]
[372533621,1752675041490,-460.0,0.00021917,2]
[372533623,1752675041500,-460.0,0.00021917,2]
[372533625,1752675041511,-460.0,0.00021917,2]
[372533627,1752675041521,-460.0,0.00021917,2]
[372533629,1752675041531,-460.0,0.00021917,2]
[372533631,1752675041541,-460.0,0.00021917,2]
[372533633,1752675041550,-460.0,0.00021917,2]
[372533635,1752675041559,-1218.73,0.00021917,2]
[372533637,1752675041569,-460.0,0.00021917,2]
[372533639,1752675041579,-460.0,0.00021917,2]
[372533641,1752675041589,-462.95495067,0.00021917,2]
[372533643,1752675041599,-460.0,0.00021917,2]
[372533645,1752675041609,-460.0,0.00021917,2]
[372533647,1752675041619,-493.46383809,0.00021917,2]
[372533649,1752675041629,-460.0,0.00021917,2]
[372533651,1752675041640,-460.0,0.00021917,2]
[372533653,1752675041649,-460.0,0.00021917,2]
[372533655,1752675041660,-460.0,0.00021917,2]
[372533657,1752675041670,-460.0,0.00021917,2]
[372533659,1752675041680,-460.0,0.00021917,2]
[372533661,1752675041690,-460.0,0.00021917,2]
[372533663,1752675041700,-460.0,0.00021917,2]
[372533665,1752675041710,-27.27197802,0.00021917,2]
[372533669,1752675041737,-432.72802198,0.00021917,2]
[372533671,1752675041747,-460.0,0.00021917,2]
[372533673,1752675041757,-460.0,0.00021917,2]
[372533675,1752675041766,-460.0,0.00021917,2]
[372533677,1752675041776,-460.0,0.00021917,2]
[372533679,1752675041786,-460.0,0.00021917,2]
[372533681,1752675041796,-460.0,0.00021917,2]
[372533683,1752675041806,-460.0,0.00021917,2]
[372533685,1752675041816,-460.0,0.00021917,2]
[372533687,1752675041826,-461.83715601,0.00021917,2]
[372533689,1752675041836,-460.0,0.00021917,2]
[372533691,1752675041846,-477.61211883,0.00021917,2]
[372533693,1752675041856,-460.60197169,0.00021917,2]
[372533695,1752675041865,-460.0,0.00021917,2]
[372533697,1752675041875,-460.0,0.00021917,2]
[372533699,1752675041885,-460.0,0.00021917,2]
[372533702,1752675041897,-460.0,0.00021917,2]
[372533704,1752675041906,-460.0,0.00021917,2]
[372533706,1752675041916,-536.62,0.00021917,2]
[372533708,1752675041926,-460.0,0.00021917,2]
[372533710,1752675041936,-460.0,0.00021917,2]
[372533712,1752675041946,-460.0,0.00021917,2]
[372533713,1752675041956,-460.0,0.00021917,2]
[372533716,1752675041966,-460.0,0.00021917,2]
[372533718,1752675041976,-1266.86,0.00021917,2]
[372533720,1752675041986,-460.0,0.00021917,2]
[372533722,1752675041996,-460.0,0.00021917,2]
[372533724,1752675042006,-460.0,0.00021917,2]
[372533726,1752675042016,-729.74,0.00021917,2]
[372533728,1752675042026,-460.0,0.00021917,2]
[372533730,1752675042035,-460.0,0.00021917,2]
[372533732,1752675042045,-610.56,0.00021917,2]
[372533734,1752675042056,-460.0,0.00021917,2]
[372533736,1752675042066,-1672.96,0.00021917,2]
[372533738,1752675042076,-460.0,0.00021917,2]
[372533740,1752675042086,-500.0,0.00021917,2]
[372533742,1752675042096,-500.0,0.00021917,2]
[372533743,1752675042106,-500.0,0.00021917,2]
[372533744,1752675042116,-500.0,0.00021917,2]
[372533745,1752675042125,-460.0,0.00021917,2]
[372533746,1752675042135,-460.0,0.00021917,2]
[372533787,1752675042520,-460.0,0.00021917,2]
[372533792,1752675042554,-460.0,0.00021917,2]
[372533794,1752675042564,-460.0,0.00021917,2]
[372533796,1752675042573,-463.19245736,0.00021917,2]
[372533798,1752675042582,-460.0,0.00021917,2]
[372533800,1752675042591,-460.0,0.00021917,2]
[372533802,1752675042600,-460.0,0.00021917,2]
[372533804,1752675042610,-460.0,0.00021917,2]
[372533806,1752675042619,-460.0,0.00021917,2]
[372533808,1752675042628,-460.0,0.00021917,2]
[372533810,1752675042638,-460.0,0.00021917,2]
[372533812,1752675042648,-460.0,0.00021917,2]
[372533814,1752675042657,-460.0,0.00021917,2]
[372533816,1752675042667,-460.0,0.00021917,2]
[372533817,1752675042676,-460.0,0.00021917,2]
[372533818,1752675042685,-460.0,0.00021917,2]
[372533819,1752675042695,-3563.16,0.00021917,2]
[372533820,1752675042704,-1129.86,0.00021917,2]
[372533821,1752675042713,-460.0,0.00021917,2]
[372533822,1752675042722,-460.0,0.00021917,2]
[372533823,1752675042732,-460.0,0.00021917,2]
[372533824,1752675042741,-1105.21,0.00021917,2]
[372533825,1752675042751,-742.46,0.00021917,2]
[372533826,1752675042760,-950.7,0.00021917,2]
[372533827,1752675042769,-460.0,0.00021917,2]
[372533828,1752675042778,-460.0,0.00021917,2]
[372533829,1752675042787,-11186.00995516,0.00021917,2]
[372533830,1752675042797,-920.44,0.00021917,2]
[372533831,1752675042806,-460.0,0.00021917,2]
[372533832,1752675042815,-460.0,0.00021917,2]
[372533833,1752675042825,-1041.58,0.00021917,2]
[372533834,1752675042834,-1463.48,0.00021917,2]
[372533835,1752675042843,-573.32,0.00021917,2]
[372533836,1752675042853,-460.0,0.00021917,2]
[372533837,1752675042862,-460.0,0.00021917,2]
[372533838,1752675042871,-460.0,0.00021917,2]
[372533840,1752675042880,-460.0,0.00021917,2]
[372533842,1752675042891,-565.53,0.00021917,2]
[372533844,1752675042900,-460.0,0.00021917,2]
[372533846,1752675042910,-500.0,0.00021917,2]
[372533848,1752675042919,-460.0,0.00021917,2]
[372533850,1752675042929,-500.0,0.00021917,2]
[372533852,1752675042939,-500.0,0.00021917,2]
[372533854,1752675042948,-576.97,0.00021917,2]
[372533856,1752675042957,-460.0,0.00021917,2]
[372533858,1752675042967,-500.0,0.00021917,2]
[372533860,1752675042976,-500.0,0.00021917,2]
[372533862,1752675042986,-460.0,0.00021917,2]
[372533864,1752675042995,-460.0,0.00021917,2]
[372533866,1752675043005,-460.0,0.00021917,2]
[372533869,1752675043015,-500.0,0.00021917,2]
[372533872,1752675043024,-462.35,0.00021917,2]
[372533875,1752675043034,-949.69,0.00021917,2]
[372533877,1752675043044,-500.0,0.00021917,2]
[372533879,1752675043054,-460.0,0.00021917,2]
[372533881,1752675043063,-500.0,0.00021917,2]
[372533883,1752675043073,-500.0,0.00021917,2]
[372533885,1752675043083,-500.0,0.00021917,2]
[372533887,1752675043093,-500.0,0.00021917,2]
[372533889,1752675043103,-500.0,0.00021917,2]
[372533891,1752675043112,-500.0,0.00021917,2]
[372533893,1752675043122,-431.21736105,0.00021917,2]
[372533895,1752675043132,-460.0,0.00021917,2]
[372533897,1752675043142,-460.0,0.00021917,2]
[372533899,1752675043152,-460.0,0.00021917,2]
[372533901,1752675043163,-460.0,0.00021917,2]
[372533904,1752675043172,-858.09,0.00021917,2]
[372533906,1752675043181,-460.0,0.00021917,2]
[372533908,1752675043192,-460.0,0.00021917,2]
[372533910,1752675043201,-460.0,0.00021917,2]
[372533912,1752675043211,-477.07059589,0.00021917,2]
[372533915,1752675043222,-460.0,0.00021917,2]
[372533918,1752675043234,-500.0,0.00021917,2]
[372533921,1752675043244,-943.98,0.00021917,2]
[372533923,1752675043253,-530.0,0.00021917,2]
[372533925,1752675043265,-1217.11,0.00021917,2]
[372533927,1752675043275,-502.35,0.00021917,2]
[372533929,1752675043285,-1009.23,0.00021917,2]
[372533931,1752675043295,-460.0,0.00021917,2]
[372533933,1752675043305,-500.0,0.00021917,2]
[372533935,1752675043315,-500.0,0.00021917,2]
[372533937,1752675043325,-460.0,0.00021917,2]
[372533939,1752675043335,-726.31,0.00021917,2]
[372533941,1752675043345,-460.0,0.00021917,2]
[372533943,1752675043354,-460.52,0.00021917,2]
[372533945,1752675043364,-1495.34,0.00021917,2]
[372533947,1752675043374,-460.0,0.00021917,2]
[372533949,1752675043384,-1273.2,0.00021917,2]
[372533952,1752675043395,-460.0,0.00021917,2]
[372533954,1752675043405,-460.0,0.00021917,2]
[372533956,1752675043415,-460.0,0.00021917,2]
[372533958,1752675043424,-754.81,0.00021917,2]
[372533959,1752675043434,-460.0,0.00021917,2]
[372533961,1752675043443,-528.42,0.00021917,2]
[372533963,1752675043453,-460.0,0.00021917,2]
[372533965,1752675043463,-460.0,0.00021917,2]
[372533968,1752675043472,-722.56,0.00021917,2]
[372533970,1752675043482,-460.0,0.00021917,2]
[372533972,1752675043492,-901.73,0.00021917,2]
[372533974,1752675043502,-460.0,0.00021917,2]
[372533976,1752675043512,-1356.64,0.00021917,2]
[372533978,1752675043521,-1164.21,0.00021917,2]
[372533980,1752675043531,-460.0,0.00021917,2]
[372533981,1752675043540,-460.0,0.00021917,2]
[372533982,1752675043550,-765.47,0.00021917,2]
[372533983,1752675043559,-460.0,0.00021917,2]
[372533984,1752675043569,-460.0,0.00021917,2]
[372533985,1752675043579,-460.0,0.00021917,2]
[372533986,1752675043589,-460.0,0.00021917,2]
[372533987,1752675043599,-933.87,0.00021917,2]
[372533989,1752675043609,-1239.81,0.00021917,2]
[372533991,1752675043619,-460.0,0.00021917,2]
[372533993,1752675043628,-460.0,0.00021917,2]
[372533995,1752675043639,-540.0,0.00021917,2]
[372533997,1752675043649,-460.0,0.00021917,2]
[372533999,1752675043659,-460.0,0.00021917,2]
[372534001,1752675043669,-250.0,0.00021917,2]
[372534003,1752675043679,-699.74,0.00021917,2]
[372534005,1752675043688,-460.0,0.00021917,2]
[372534007,1752675043698,-460.0,0.00021917,2]
[372534009,1752675043708,-460.0,0.00021917,2]
[372534011,1752675043718,-460.0,0.00021917,2]
[372534013,1752675043728,-500.0,0.00021917,2]
[372534015,1752675043738,-768.57,0.00021917,2]
[372534017,1752675043747,-460.0,0.00021917,2]
[372534019,1752675043757,-460.0,0.00021917,2]
[372534021,1752675043767,-460.0,0.00021917,2]
[372534023,1752675043776,-460.0,0.00021917,2]
[372534025,1752675043786,-495.38001186,0.00021917,2]
[372534027,1752675043796,-460.0,0.00021917,2]
[372534029,1752675043806,-460.0,0.00021917,2]
[372534031,1752675043815,-460.0,0.00021917,2]
[372534033,1752675043826,-460.0,0.00021917,2]
[372534036,1752675043836,-460.0,0.00021917,2]
[372534037,1752675043847,-460.0,0.00021917,2]
[372534040,1752675043857,-335.47460463,0.00021917,2]
[372534041,1752675043868,-460.0,0.00021917,2]
[372534044,1752675043878,-460.0,0.00021917,2]
[372534046,1752675043889,-564.44,0.00021917,2]
[372534048,1752675043899,-460.0,0.00021917,2]
[372534050,1752675043909,-460.0,0.00021917,2]
[372534051,1752675043919,-2850.31,0.00021917,2]
[372534054,1752675043928,-460.0,0.00021917,2]
[372534055,1752675043938,-584.69,0.00021917,2]
[372534058,1752675043948,-460.0,0.00021917,2]
[372534060,1752675043957,-460.0,0.00021917,2]
[372534062,1752675043967,-460.0,0.00021917,2]
[372534064,1752675043977,-460.0,0.00021917,2]
[372534066,1752675043987,-460.0,0.00021917,2]
[372534067,1752675043996,-482.77,0.00021917,2]
[372534070,1752675044007,-460.0,0.00021917,2]
[372534072,1752675044018,-460.0,0.00021917,2]
[372534074,1752675044029,-2389.89,0.00021917,2]
[372534076,1752675044039,-460.0,0.00021917,2]
[372534078,1752675044049,-460.0,0.00021917,2]
[372534080,1752675044059,-2426.53,0.00021917,2]
[372534082,1752675044069,-460.0,0.00021917,2]
[372534084,1752675044079,-460.0,0.00021917,2]
[372534086,1752675044090,-310.15333417,0.00021917,2]
[372534088,1752675044099,-460.0,0.00021917,2]
[372534090,1752675044109,-460.0,0.00021917,2]
[372534092,1752675044119,-460.0,0.00021917,2]
[372534094,1752675044129,-460.0,0.00021917,2]
[372534096,1752675044139,-460.0,0.00021917,2]
[372534098,1752675044149,-150.98966253,0.00021917,2]
[372534100,1752675044159,-491.48,0.00021917,2]
[372534102,1752675044168,-637.75,0.00021917,2]
[372534104,1752675044178,-160.0208551,0.00021917,2]
[372534106,1752675044188,-460.0,0.00021917,2]
[372534108,1752675044198,-460.0,0.00021917,2]
[372534110,1752675044207,-933.81,0.00021917,2]
[372534112,1752675044217,-601.87,0.00021917,2]
[372534114,1752675044232,-460.0,0.00021917,2]
[372534116,1752675044242,-460.0,0.00021917,2]
[372534118,1752675044252,-500.0,0.00021917,2]
[372534120,1752675044261,-500.0,0.00021917,2]
[372534122,1752675044271,-460.0,0.00021917,2]
[372534125,1752675044291,-460.0,0.00021917,2]
[372534127,1752675044303,-1248.84,0.00021917,2]
[372534129,1752675044314,-460.0,0.00021917,2]
[372534131,1752675044324,-460.0,0.00021917,2]
[372534133,1752675044335,-460.0,0.00021917,2]
[372534135,1752675044345,-460.0,0.00021917,2]
[372534137,1752675044355,-460.0,0.00021917,2]
[372534139,1752675044365,-2482.43,0.00021917,2]
[372534141,1752675044375,-833.91,0.00021917,2]
[372534143,1752675044385,-460.0,0.00021917,2]
[372534145,1752675044400,-803.93,0.00021917,2]
[372534148,1752675044411,-460.0,0.00021917,2]
[372534150,1752675044421,-460.0,0.00021917,2]
[372534152,1752675044431,-460.0,0.00021917,2]
[372534154,1752675044441,-460.0,0.00021917,2]
[372534156,1752675044451,-937.07,0.00021917,2]
[372534158,1752675044462,-460.0,0.00021917,2]
[372534160,1752675044472,-479.68,0.00021917,2]
[372534162,1752675044482,-534.6,0.00021917,2]
[372534164,1752675044493,-949.03,0.00021917,2]
[372534166,1752675044503,-978.87,0.00021917,2]
[372534168,1752675044513,-460.0,0.00021917,2]
[372534171,1752675044524,-542.47,0.00021917,2]
[372534173,1752675044534,-460.0,0.00021917,2]
[372534175,1752675044544,-460.0,0.00021917,2]
[372534177,1752675044554,-733.5,0.00021917,2]
[372534179,1752675044564,-460.0,0.00021917,2]
[372534181,1752675044575,-460.0,0.00021917,2]
[372534183,1752675044584,-460.0,0.00021917,2]
[372534185,1752675044594,-508.2,0.00021917,2]
[372534187,1752675044604,-460.0,0.00021917,2]
[372534189,1752675044614,-460.0,0.00021917,2]
[372534191,1752675044624,-484.79,0.00021917,2]
[372534193,1752675044634,-614.81,0.00021917,2]
[372534195,1752675044646,-974.44,0.00021917,2]
[372534197,1752675044656,-617.82,0.00021917,2]
[372534199,1752675044666,-1206.29,0.00021917,2]
[372534201,1752675044677,-460.0,0.00021917,2]
[372534203,1752675044687,-528.61,0.00021917,2]
[372534204,1752675044697,-460.0,0.00021917,2]
[372534205,1752675044707,-460.0,0.00021917,2]
[372534206,1752675044718,-648.48,0.00021917,2]
[372534207,1752675044728,-460.0,0.00021917,2]
[372534208,1752675044739,-460.0,0.00021917,2]
[372534209,1752675044749,-460.0,0.00021917,2]
[372534211,1752675044759,-460.0,0.00021917,2]
[372534213,1752675044770,-460.0,0.00021917,2]
[372534215,1752675044780,-460.0,0.00021917,2]
[372534217,1752675044790,-460.0,0.00021917,2]
[372534219,1752675044800,-460.0,0.00021917,2]
[372534221,1752675044810,-460.0,0.00021917,2]
[372534224,1752675044821,-460.0,0.00021917,2]
[372534226,1752675044831,-936.02,0.00021917,2]
[372534228,1752675044841,-823.76,0.00021917,2]
[372534230,1752675044852,-641.82,0.00021917,2]
[372534232,1752675044862,-1346.53,0.00021917,2]
[372534234,1752675044872,-460.0,0.00021917,2]
[372534236,1752675044882,-460.0,0.00021917,2]
[372534238,1752675044893,-643.85,0.00021917,2]
[372534240,1752675044903,-460.0,0.00021917,2]
[372534242,1752675044914,-573.79,0.00021917,2]
[372534244,1752675044923,-460.0,0.00021917,2]
[372534246,1752675044934,-1029.82,0.00021917,2]
[372534248,1752675044944,-460.0,0.00021917,2]
[372534250,1752675044956,-478.17,0.00021917,2]
[372534252,1752675044967,-460.0,0.00021917,2]
[372534254,1752675044977,-460.0,0.00021917,2]
[372534256,1752675044987,-460.0,0.00021917,2]
[372534271,1752675044998,-1330.49,0.00021917,2]
[372534273,1752675045133,-548.5,0.00021917,2]
[372534275,1752675045143,-474.16,0.00021917,2]
[372534277,1752675045153,-460.0,0.00021917,2]
[372534279,1752675045164,-461.37196757,0.00021917,2]
[372534281,1752675045174,-460.0,0.00021917,2]
[372534283,1752675045183,-904.28,0.00021917,2]
[372534285,1752675045193,-699.26,0.00021917,2]
[372534287,1752675045204,-460.0,0.00021917,2]
[372534289,1752675045215,-460.0,0.00021917,2]
[372534291,1752675045228,-460.0,0.00021917,2]
[372534293,1752675045238,-460.0,0.00021917,2]
[372534295,1752675045249,-460.0,0.00021917,2]
[372534297,1752675045259,-860.0,0.00021917,2]
[372534299,1752675045268,-460.0,0.00021917,2]
[372534301,1752675045278,-559.42,0.00021917,2]
[372534303,1752675045288,-460.0,0.00021917,2]
[372534305,1752675045301,-460.0,0.00021917,2]
[372534307,1752675045310,-383.43965968,0.00021917,2]
[372534309,1752675045321,-1418.78,0.00021917,2]
[372534311,1752675045330,-460.0,0.00021917,2]
[372534313,1752675045340,-460.0,0.00021917,2]
[372534315,1752675045349,-692.08,0.00021917,2]
[372534317,1752675045359,-460.0,0.00021917,2]
[372534319,1752675045368,-460.0,0.00021917,2]
[372534321,1752675045378,-267.07113923,0.00021917,2]
[372534323,1752675045389,-1163.61,0.00021917,2]
[372534325,1752675045398,-460.0,0.00021917,2]
[372534327,1752675045407,-1192.88,0.00021917,2]
[372534329,1752675045418,-460.0,0.00021917,2]
[372534331,1752675045428,-1192.88,0.00021917,2]
[372534333,1752675045437,-1354.21,0.00021917,2]
[372534335,1752675045447,-1192.88,0.00021917,2]
[372534337,1752675045456,-460.0,0.00021917,2]
[372534339,1752675045466,-460.0,0.00021917,2]
[372534341,1752675045475,-1192.88,0.00021917,2]
[372534343,1752675045485,-510.14,0.00021917,2]
[372534346,1752675045495,-1192.88,0.00021917,2]
[372534349,1752675045505,-1192.88,0.00021917,2]
[372534352,1752675045515,-1192.88,0.00021917,2]
[372534355,1752675045525,-1192.88,0.00021917,2]
[372534358,1752675045535,-1192.88,0.00021917,2]
[372534361,1752675045546,-1192.88,0.00021917,2]
[372534365,1752675045556,-1006.36,0.00021917,2]
[372534368,1752675045566,-460.0,0.00021917,2]
[372534371,1752675045576,-785.98,0.00021917,2]
[372534374,1752675045586,-460.0,0.00021917,2]
[372534375,1752675045596,-963.62,0.00021917,2]
[372534377,1752675045606,-460.0,0.00021917,2]
[372534380,1752675045616,-460.0,0.00021917,2]
[372534382,1752675045626,-460.0,0.00021917,2]
[372534384,1752675045636,-460.0,0.00021917,2]
[372534385,1752675045647,-479.61,0.00021917,2]
[372534388,1752675045657,-559.45,0.00021917,2]
[372534390,1752675045667,-460.0,0.00021917,2]
[372534391,1752675045677,-1597.37,0.00021917,2]
[372534394,1752675045687,-460.0,0.00021917,2]
[372534396,1752675045697,-460.0,0.00021917,2]
[372534397,1752675045706,-537.84,0.00021917,2]
[372534400,1752675045716,-460.0,0.00021917,2]
[372534401,1752675045726,-461.20398739,0.00021917,2]
[372534404,1752675045736,-460.0,0.00021917,2]
[372534406,1752675045746,-460.0,0.00021917,2]
[372534407,1752675045756,-460.0,0.00021917,2]
[372534408,1752675045767,-342.36821645,0.00021917,2]
[372534409,1752675045777,-460.0,0.00021917,2]
[372534410,1752675045787,-716.16,0.00021917,2]
[372534411,1752675045798,-460.0,0.00021917,2]
[372534412,1752675045809,-460.88981099,0.00021917,2]
[372534414,1752675045819,-460.0,0.00021917,2]
[372534416,1752675045830,-460.0,0.00021917,2]
[372534418,1752675045840,-460.0,0.00021917,2]
[372534419,1752675045851,-460.0,0.00021917,2]
[372534422,1752675045861,-641.98,0.00021917,2]
[372534423,1752675045871,-460.0,0.00021917,2]
[372534426,1752675045882,-508.5,0.00021917,2]
[372534428,1752675045893,-460.0,0.00021917,2]
[372534430,1752675045903,-1512.56,0.00021917,2]
[372534432,1752675045915,-460.0,0.00021917,2]
[372534433,1752675045926,-460.0,0.00021917,2]
[372534436,1752675045936,-535.33,0.00021917,2]
[372534438,1752675045947,-460.0,0.00021917,2]
[372534440,1752675045957,-460.0,0.00021917,2]
[372534442,1752675045966,-460.0,0.00021917,2]
[372534444,1752675045977,-460.0,0.00021917,2]
[372534446,1752675045986,-934.45,0.00021917,2]
[372534447,1752675045995,-460.0,0.00021917,2]
[372534449,1752675046005,-1290.36,0.00021917,2]
[372534451,1752675046014,-552.6,0.00021917,2]
[372534453,1752675046023,-460.0,0.00021917,2]
[372534455,1752675046032,-460.0,0.00021917,2]
[372534457,1752675046042,-460.0,0.00021917,2]
[372534459,1752675046051,-460.0,0.00021917,2]
[372534461,1752675046061,-888.61,0.00021917,2]
[372534463,1752675046071,-460.0,0.00021917,2]
[372534465,1752675046081,-179.45969286,0.00021917,2]
[372534468,1752675046095,-460.0,0.00021917,2]
[372534470,1752675046104,-460.0,0.00021917,2]
[372534472,1752675046114,-460.0,0.00021917,2]
[372534474,1752675046123,-502.79,0.00021917,2]
[372534476,1752675046133,-557.23,0.00021917,2]
[372534478,1752675046145,-580.0,0.00021917,2]
[372534480,1752675046154,-460.0,0.00021917,2]
[372534482,1752675046163,-629.36,0.00021917,2]
[372534484,1752675046173,-460.0,0.00021917,2]
[372534486,1752675046182,-460.0,0.00021917,2]
[372534488,1752675046192,-460.0,0.00021917,2]
[372534490,1752675046201,-553.74843113,0.00021917,2]
[372534493,1752675046214,-1752.37,0.00021917,2]
[372534495,1752675046227,-4016.81,0.00021917,2]
[372534497,1752675046236,-474.42,0.00021917,2]
[372534499,1752675046246,-460.0,0.00021917,2]
[372534501,1752675046256,-460.0,0.00021917,2]
[372534503,1752675046267,-460.0,0.00021917,2]
[372534505,1752675046276,-651.05,0.00021917,2]
[372534507,1752675046286,-916.02,0.00021917,2]
[372534508,1752675046297,-460.0,0.00021917,2]
[372534510,1752675046306,-493.9,0.00021917,2]
[372534511,1752675046316,-651.58,0.00021917,2]
[372534513,1752675046325,-460.0,0.00021917,2]
[372534514,1752675046335,-163.36480195,0.00021917,2]
[372534516,1752675046345,-460.0,0.00021917,2]
[372534517,1752675046355,-546.44,0.00021917,2]
[372534519,1752675046364,-3852.7,0.00021917,2]
[372534520,1752675046373,-464.07738992,0.00021917,2]
[372534522,1752675046383,-460.0,0.00021917,2]
[372534523,1752675046392,-504.46683659,0.00021917,2]
[372534525,1752675046402,-460.0,0.00021917,2]
[372534526,1752675046411,-460.0,0.00021917,2]
[372534528,1752675046420,-491.4,0.00021917,2]
[372534529,1752675046431,-460.0,0.00021917,2]
[372534531,1752675046440,-500.0,0.00021917,2]
[372534533,1752675046450,-460.0,0.00021917,2]